bitfinex/quotes_BTCUSD_20251019
["timestamp","ask_amount","ask_price","bid_price","bid_amount"]
[1760876217835,3.32578542,107730.0,107720.0,0.00211551]
[1760876217978,3.66578542,107730.0,107720.0,0.00211551]
[1760876218601,3.57246542,107730.0,107720.0,0.00211551]
[1760876220998,3.57246801,107730.0,107720.0,0.00211551]
[1760876221205,3.57246801,107730.0,107720.0,0.09652639]
[1760876221406,0.23085029,107730.0,107720.0,0.12474711]
[1760876221584,0.20293183,107730.0,107720.0,0.12474711]
[1760876221788,0.54293183,107730.0,107720.0,0.12474711]
[1760876222998,0.5256493,107730.0,107720.0,0.12474711]
[1760876223203,0.5256493,107730.0,107720.0,0.09652639]
[1760876224811,0.5256493,107730.0,107720.0,0.18984639]
[1760876229029,0.5256493,107730.0,107720.0,0.09652639]
[1760876230700,0.5256493,107730.0,107720.0,0.24382639]
[1760876230919,0.5256493,107730.0,107720.0,0.27754103]
[1760876233521,0.5256493,107730.0,107720.0,0.27854103]
[1760876234388,0.31596236,107730.0,107720.0,0.27854103]
[1760876234745,0.50161166,107730.0,107720.0,0.27854103]
[1760876235242,0.50161166,107730.0,107720.0,0.46420757]
[1760876235449,0.50161166,107730.0,107720.0,0.27854103]
[1760876247590,0.31596236,107730.0,107720.0,0.46420757]
[1760876248747,0.50161166,107730.0,107720.0,0.46420757]
[1760876251383,0.31596236,107730.0,107720.0,0.46420757]
[1760876251570,0.31596236,107730.0,107720.0,0.50038985]
[1760876251988,3.0,107740.0,107730.0,0.22181749]
[1760876252197,3.0,107740.0,107730.0,0.47811088]
[1760876252394,0.34,107740.0,107730.0,0.47811088]
[1760876253146,0.52563207,107740.0,107730.0,0.47811088]
[1760876254171,0.34,107740.0,107730.0,0.47811088]
[1760876254381,0.34,107740.0,107730.0,0.62541088]
[1760876254792,0.34,107740.0,107730.0,0.62641088]
[1760876255828,0.52563207,107740.0,107730.0,0.62641088]
[1760876256457,0.18563207,107740.0,107730.0,0.62641088]
[1760876257101,0.19491021,107750.0,107730.0,0.62641088]
[1760876257311,0.19491021,107750.0,107740.0,0.09441088]
[1760876257519,0.19491021,107750.0,107740.0,0.15705197]
[1760876258542,0.53491021,107750.0,107740.0,0.15705197]
[1760876259072,0.53491021,107750.0,107740.0,0.34268404]
[1760876259705,0.53491021,107750.0,107740.0,0.48998404]
[1760876262382,0.53491021,107750.0,107740.0,0.48439492]
[1760876262591,0.34,107750.0,107740.0,0.5205772]
[1760876263017,0.34,107750.0,107740.0,0.52128765]
[1760876263646,0.52561484,107750.0,107740.0,0.33565558]
[1760876264501,0.52561484,107750.0,107740.0,0.52128765]
[1760876267384,0.34,107750.0,107740.0,0.52128765]
[1760876267567,3.0,107750.0,107740.0,0.52128765]
[1760876268297,3.18561484,107750.0,107740.0,0.52128765]
[1760876268533,3.0,107750.0,107740.0,0.52128765]
[1760876269271,0.18561484,107750.0,107740.0,0.52128765]
[1760876271048,0.18561484,107750.0,107740.0,0.33565558]
[1760876271253,0.18561484,107750.0,107740.0,0.52128765]
[1760876272502,0.18561484,107750.0,107740.0,0.33565558]
[1760876272697,0.18561484,107750.0,107740.0,0.52128765]
[1760876276778,0.52561484,107750.0,107740.0,0.52128765]
[1760876278949,0.52561484,107750.0,107740.0,0.33565558]
[1760876281372,0.52561484,107750.0,107740.0,0.52128765]
[1760876281779,0.34,107750.0,107740.0,0.52128765]
[1760876287368,0.13491208,107750.0,107740.0,0.52128765]
[1760876287565,0.19490571,107760.0,107740.0,0.52128765]
[1760876287775,0.19490571,107760.0,107750.0,0.18769088]
[1760876287989,0.19490571,107760.0,107750.0,0.2490766]
[1760876288577,0.01430598,107770.0,107750.0,0.2490766]
[1760876288784,0.01430598,107770.0,107760.0,0.2217799]
[1760876288984,0.01430598,107770.0,107760.0,0.31619078]
[1760876289225,0.01430598,107770.0,107760.0,0.38183791]
[1760876289950,0.19988638,107770.0,107760.0,0.19638869]
[1760876290154,0.19988638,107770.0,107760.0,0.38198631]
[1760876290554,0.01430598,107770.0,107760.0,0.38198631]
[1760876291397,0.01430598,107770.0,107760.0,0.38298631]
[1760876294345,0.01430598,107770.0,107760.0,0.53028631]
[1760876294559,0.01430598,107770.0,107760.0,0.77298631]
[1760876294768,0.01430598,107770.0,107760.0,0.38298631]
[1760876295193,0.01430598,107770.0,107760.0,0.5402863]
[1760876295394,3.0,107800.0,107790.0,0.22171337]
[1760876295609,0.20538916,107810.0,107790.0,0.45008923]
[1760876295829,0.01974817,107810.0,107800.0,0.31612191]
[1760876296662,0.20525971,107810.0,107800.0,0.13059316]
[1760876296869,0.20525971,107810.0,107800.0,0.22383316]
[1760876297073,0.54535149,107810.0,107800.0,0.26884293]
[1760876297685,0.54535149,107810.0,107800.0,0.26984293]
[1760876298302,0.35983995,107810.0,107800.0,0.45537168]
[1760876298729,0.35983995,107810.0,107800.0,0.45437168]
[1760876299140,0.54535149,107810.0,107800.0,0.45437168]
[1760876299981,0.54535149,107810.0,107800.0,0.45537168]
[1760876304624,0.54535149,107810.0,107800.0,0.33595088]
[1760876306285,0.54535149,107810.0,107800.0,0.33495088]
[1760876306485,0.54677132,107810.0,107800.0,0.33595088]
[1760876307613,0.56394486,107810.0,107800.0,0.001]
[1760876307824,3.59183872,107810.0,107800.0,0.001]
[1760876309160,0.1855804,107770.0,107760.0,0.06639262]
[1760876309411,0.5255804,107770.0,107760.0,0.18835637]
[1760876309793,0.5255804,107770.0,107760.0,0.22453865]
[1760876310414,0.5255804,107770.0,107760.0,0.22468705]
[1760876310630,0.5255804,107770.0,107760.0,0.22568705]
[1760876311042,0.5255804,107770.0,107760.0,0.27016124]
[1760876315018,0.34,107770.0,107760.0,0.45575886]
[1760876315421,0.5255804,107770.0,107760.0,0.45575886]
[1760876316581,0.5255804,107770.0,107760.0,0.27016124]
[1760876318456,0.34,107770.0,107760.0,0.45575886]
[1760876318671,0.00035505,107780.0,107770.0,0.22176268]
[1760876318884,0.00035505,107780.0,107770.0,0.38030749]
[1760876319993,0.00035505,107780.0,107770.0,0.38130749]
[1760876321672,0.00035505,107780.0,107770.0,0.52860749]
[1760876325300,0.00035505,107780.0,107770.0,0.77130749]
[1760876325946,0.00035505,107780.0,107770.0,0.78130748]
[1760876326601,0.00035505,107780.0,107770.0,0.77130749]
[1760876326805,0.00035505,107780.0,107770.0,0.78130748]
[1760876327502,0.33933424,107790.0,107780.0,0.22174546]
[1760876327684,0.33933424,107790.0,107780.0,0.50380276]
[1760876327892,0.33968925,107790.0,107780.0,0.50380276]
[1760876330060,0.33968925,107790.0,107780.0,0.50480276]
[1760876331148,0.33968925,107790.0,107780.0,0.65210276]
[1760876340652,0.00035501,107790.0,107780.0,0.65210276]
[1760876341309,0.00035501,107790.0,107780.0,0.66594591]
[1760876341745,0.00035501,107790.0,107780.0,0.65210276]
[1760876341954,0.00035501,107790.0,107780.0,0.66210275]
[1760876342172,0.35974817,107810.0,107800.0,0.22171103]
[1760876342393,0.35974817,107810.0,107800.0,0.61172564]
[1760876343485,0.35974817,107810.0,107800.0,0.61287404]
[1760876345282,0.35974817,107810.0,107800.0,0.61187404]
[1760876345718,0.35974817,107810.0,107800.0,0.61287404]
[1760876348053,0.36045803,107810.0,107800.0,0.61287404]
[1760876351097,0.54596957,107810.0,107800.0,0.42730529]
[1760876351972,0.54596957,107810.0,107800.0,0.42630529]
[1760876352184,0.54596957,107810.0,107800.0,0.61183404]
[1760876352395,0.54596957,107810.0,107800.0,0.61283404]
[1760876352605,0.35971358,107810.0,107800.0,0.61283404]
[1760876353069,0.1862214,107810.0,107800.0,0.61283404]
[1760876353891,0.18551154,107810.0,107800.0,0.61283404]
[1760876355804,0.18551154,107810.0,107800.0,0.42730529]
[1760876356014,0.18551154,107810.0,107800.0,0.61283404]
[1760876356442,0.18551154,107810.0,107800.0,0.42730529]
[1760876357516,0.18551154,107810.0,107800.0,0.61283404]
[1760876358241,0.18551154,107810.0,107800.0,0.27868655]
[1760876358472,0.18551154,107810.0,107800.0,0.0011484]
[1760876358684,3.2134038,107810.0,107800.0,0.0011484]
[1760876358894,3.2134038,107810.0,107800.0,0.0001484]
[1760876359118,3.2134038,107810.0,107800.0,0.0011484]
[1760876359988,3.23066477,107810.0,107800.0,0.0011484]
[1760876360210,3.23066477,107810.0,107800.0,0.0001484]
[1760876368294,3.2134038,107810.0,107800.0,0.0001484]
[1760876368911,0.2134038,107810.0,107800.0,0.0001484]
[1760876369547,0.2134038,107810.0,107800.0,0.14709339]
[1760876369749,0.2134038,107810.0,107800.0,0.14815633]
[1760876369954,0.2134038,107810.0,107800.0,0.17229196]
[1760876371243,0.2134038,107810.0,107800.0,0.17329196]
[1760876371471,0.2134038,107810.0,107800.0,0.17222902]
[1760876371887,0.2134038,107810.0,107800.0,0.17315666]
[1760876372106,0.2134038,107810.0,107800.0,0.17222902]
[1760876372943,0.18551154,107810.0,107800.0,0.2666399]
[1760876375191,0.18551154,107810.0,107800.0,0.24250427]
[1760876378323,0.18551154,107810.0,107800.0,0.14809339]
[1760876378549,0.21340552,107810.0,107800.0,0.14809339]
[1760876378988,0.21340552,107810.0,107800.0,0.14709339]
[1760876385208,0.23067611,107810.0,107800.0,0.14709339]
[1760876385427,0.23067611,107810.0,107800.0,0.17112273]
[1760876385663,0.23067611,107810.0,107800.0,0.14709339]
[1760876386664,0.03956589,107810.0,107800.0,0.14709339]
[1760876386862,0.22687824,107810.0,107800.0,0.14709339]
[1760876387031,0.22507743,107810.0,107800.0,0.14709339]
[1760876387742,0.20780684,107810.0,107800.0,0.14709339]
[1760876387951,0.2250872,107810.0,107800.0,0.14709339]
[1760876388351,0.5650872,107810.0,107800.0,0.17112273]
[1760876389451,0.5650872,107810.0,107800.0,0.26553361]
[1760876389650,0.54780684,107810.0,107800.0,0.26553361]
[1760876391804,0.54780684,107810.0,107800.0,0.26653361]
[1760876392216,0.56509334,107810.0,107800.0,0.26653361]
[1760876392430,0.20279804,107810.0,107800.0,0.26653361]
[1760876392649,0.18551154,107810.0,107800.0,0.26653361]
[1760876395754,0.52551154,107810.0,107800.0,0.26653361]
[1760876402302,0.52551154,107810.0,107800.0,0.24250427]
[1760876420494,0.52551154,107810.0,107800.0,0.24750427]
[1760876441275,0.54283349,107810.0,107800.0,0.24750427]
[1760876443380,0.52551154,107810.0,107800.0,0.24750427]
[1760876447605,0.52551154,107810.0,107800.0,0.15309339]
[1760876448259,3.54282577,107810.0,107800.0,0.0061484]
[1760876448492,3.66147113,107810.0,107800.0,1e-08]
[1760876448721,3.6893702,107810.0,107800.0,1e-08]
[1760876449345,3.66513572,107810.0,107800.0,1e-08]
[1760876451416,3.66675237,107810.0,107800.0,1e-08]
[1760876452049,3.66775237,107810.0,107800.0,1e-08]
[1760876453023,3.66613572,107810.0,107800.0,1e-08]
[1760876453197,3.702318,107810.0,107800.0,1e-08]
[1760876454740,3.70225676,107810.0,107800.0,1e-08]
[1760876455686,3.52554596,107790.0,107780.0,1e-08]
[1760876455897,3.63614727,107790.0,107780.0,1e-08]
[1760876456309,3.63776405,107790.0,107780.0,1e-08]
[1760876456520,3.66566776,107790.0,107780.0,1e-08]
[1760876457360,3.76007864,107790.0,107780.0,1e-08]
[1760876461971,3.57453268,107790.0,107780.0,1e-08]
[1760876462191,3.76007864,107790.0,107780.0,1e-08]
[1760876462405,3.57246776,107790.0,107780.0,1e-08]
[1760876473145,3.57346776,107790.0,107780.0,1e-08]
[1760876473576,3.66787864,107790.0,107780.0,1e-08]
[1760876477817,3.66626186,107790.0,107780.0,1e-08]
[1760876478819,3.73984284,107790.0,107780.0,1e-08]
[1760876479624,3.72396564,107790.0,107780.0,1e-08]
[1760876480521,3.72296564,107790.0,107780.0,1e-08]
[1760876480723,3.72558273,107790.0,107780.0,1e-08]
[1760876482572,3.73558272,107790.0,107780.0,1e-08]
[1760876483210,0.5256493,107730.0,107720.0,0.0002]
[1760876483417,0.5256493,107730.0,107720.0,0.09461088]
[1760876483418,0.54290229,107730.0,107720.0,0.09461088]
[1760876483815,0.57081304,107730.0,107720.0,0.09745256]
[1760876484440,0.57096123,107730.0,107720.0,0.11081604]
[1760876486261,0.57096123,107730.0,107720.0,0.09745256]
[1760876487510,0.58243246,107730.0,107720.0,0.09745256]
[1760876489700,0.5824128,107730.0,107720.0,0.09745256]
[1760876493229,0.5824128,107730.0,107720.0,0.19069256]
[1760876500925,0.3967635,107730.0,107720.0,0.3763591]
[1760876501092,0.3967635,107730.0,107720.0,0.43256336]
[1760876501551,0.0567635,107730.0,107720.0,0.43256336]
[1760876501756,0.02885275,107730.0,107720.0,0.43256336]
[1760876501951,0.02885275,107730.0,107720.0,0.46874564]
[1760876502292,0.36885275,107730.0,107720.0,0.46874564]
[1760876502711,0.36885275,107730.0,107720.0,0.61604564]
[1760876503345,0.35161942,107730.0,107720.0,0.61604564]
[1760876503899,0.01161942,107730.0,107720.0,0.61604564]
[1760876508822,0.01161942,107730.0,107720.0,0.4303791]
[1760876509031,0.01161942,107730.0,107720.0,0.55984138]
[1760876510697,0.19726872,107730.0,107720.0,0.55984138]
[1760876510901,0.19726872,107730.0,107720.0,0.37417484]
[1760876511133,0.19726872,107730.0,107720.0,0.55984138]
[1760876511357,0.19726872,107730.0,107720.0,0.63439387]
[1760876511559,0.19726872,107730.0,107720.0,0.37417484]
[1760876512175,0.01161942,107730.0,107720.0,0.55984138]
[1760876512779,0.19726872,107730.0,107720.0,0.24475256]
[1760876512930,0.19726872,107730.0,107720.0,0.33799256]
[1760876513338,0.19726872,107730.0,107720.0,0.39036017]
[1760876515058,0.22517957,107730.0,107720.0,0.39036017]
[1760876515265,0.03953027,107730.0,107720.0,0.39036017]
[1760876516044,0.03953027,107730.0,107720.0,0.57602671]
[1760876519984,0.39280077,107740.0,107720.0,0.57602671]
[1760876520161,0.42076125,107740.0,107730.0,0.09441088]
[1760876520376,0.42076125,107740.0,107730.0,0.15172938]
[1760876520902,0.43244638,107740.0,107730.0,0.15172938]
[1760876522545,0.43244638,107740.0,107730.0,0.09441088]
[1760876525547,0.24681254,107740.0,107730.0,0.28254641]
[1760876525751,0.21890169,107740.0,107730.0,0.28254641]
[1760876526031,0.01173476,107740.0,107730.0,0.28254641]
[1760876526501,0.35173476,107740.0,107730.0,0.28254641]
[1760876526704,0.35173476,107740.0,107730.0,0.34394833]
[1760876527044,0.01173476,107740.0,107730.0,0.38013061]
[1760876527624,0.35173476,107740.0,107730.0,0.38013061]
[1760876528588,0.01173476,107740.0,107730.0,0.38013061]
[1760876531149,0.01173476,107740.0,107730.0,0.5374306]
[1760876533116,0.01173476,107740.0,107730.0,0.52743061]
[1760876533341,0.01173476,107740.0,107730.0,0.5374306]
[1760876535078,0.22281681,107780.0,107750.0,0.22179712]
[1760876535079,0.02790286,107780.0,107750.0,0.22179712]
[1760876535319,0.18741421,107780.0,107760.0,0.18765088]
[1760876535509,0.1855804,107770.0,107760.0,0.18765088]
[1760876535729,0.5255804,107770.0,107760.0,0.09441088]
[1760876535930,3.5255804,107770.0,107760.0,0.18765088]
[1760876536138,0.18562006,107750.0,107730.0,0.42225436]
[1760876536350,0.18562006,107750.0,107740.0,0.18765088]
[1760876536556,0.18562006,107750.0,107740.0,0.23112109]
[1760876537170,0.18562006,107750.0,107740.0,0.09441088]
[1760876537386,0.18562006,107750.0,107740.0,0.18765088]
[1760876538172,3.0,107750.0,107740.0,0.37328225]
[1760876538837,0.18561484,107750.0,107740.0,0.37328225]
[1760876539043,3.0,107750.0,107740.0,0.37328225]
[1760876539253,0.52559791,107760.0,107740.0,0.43010364]
[1760876539467,0.34,107760.0,107750.0,0.18561484]
[1760876539693,0.34,107760.0,107750.0,0.316208]
[1760876539930,0.2155763,107780.0,107760.0,0.18559762]
[1760876540144,3.18738121,107770.0,107760.0,0.2800085]
[1760876540354,0.1855804,107770.0,107760.0,0.43819906]
[1760876540582,0.5255804,107770.0,107760.0,0.43819906]
[1760876541004,0.5255804,107770.0,107760.0,0.43961932]
[1760876542582,0.5255804,107770.0,107760.0,0.44061932]
[1760876543000,0.5255804,107770.0,107760.0,0.2550217]
[1760876543202,0.31635104,107770.0,107760.0,0.2550217]
[1760876543594,0.50193144,107770.0,107760.0,0.44061932]
[1760876544264,0.50193144,107770.0,107760.0,0.58791932]
[1760876544666,0.50193144,107770.0,107760.0,0.4023217]
[1760876545266,0.50193144,107770.0,107760.0,0.58791932]
[1760876545899,0.50193144,107770.0,107760.0,0.4023217]
[1760876547544,0.50193144,107770.0,107760.0,0.24413114]
[1760876547767,3.50193144,107770.0,107760.0,0.33737114]
[1760876547989,3.50193144,107770.0,107760.0,0.24413114]
[1760876548210,3.50193144,107770.0,107760.0,0.33737114]
[1760876548426,3.50193144,107770.0,107760.0,0.33637114]
[1760876550190,3.50193144,107770.0,107760.0,0.18907114]
[1760876552933,3.50193144,107770.0,107760.0,0.09466026]
[1760876553152,3.50193144,107770.0,107760.0,0.00142026]
[1760876553369,3.50193144,107770.0,107760.0,0.09466026]
[1760876553786,3.50193144,107770.0,107760.0,0.00142026]
[1760876554201,3.50193144,107770.0,107760.0,0.09466026]
[1760876555904,3.50197144,107770.0,107760.0,0.09466026]
[1760876556113,3.50197144,107770.0,107760.0,0.10420792]
[1760876558125,3.50197144,107770.0,107760.0,0.09466026]
[1760876559305,3.50197144,107770.0,107760.0,0.00142026]
[1760876559567,3.5192609,107770.0,107760.0,0.00142026]
[1760876565565,3.50197144,107770.0,107760.0,0.00142026]
[1760876565781,3.50197144,107770.0,107760.0,0.09583114]
[1760876565782,3.1856204,107770.0,107760.0,0.09583114]
[1760876565922,3.1856204,107770.0,107760.0,0.31889726]
[1760876566700,0.5256204,107770.0,107760.0,0.09583114]
[1760876568604,0.5256204,107770.0,107760.0,0.09683114]
[1760876570004,0.5256204,107770.0,107760.0,0.28301656]
[1760876570200,0.5256204,107770.0,107760.0,0.28242876]
[1760876570815,0.5256204,107770.0,107760.0,0.42972876]
[1760876571023,0.5256204,107770.0,107760.0,0.50058703]
[1760876571435,0.5256204,107770.0,107760.0,0.50071734]
[1760876571900,0.34004,107770.0,107760.0,0.50071734]
[1760876572738,0.5256204,107770.0,107760.0,0.50071734]
[1760876573857,0.5256204,107770.0,107760.0,0.31511972]
[1760876575825,0.5256204,107770.0,107760.0,0.50058703]
[1760876577001,0.5256204,107770.0,107760.0,0.50077885]
[1760876578139,0.5256204,107770.0,107760.0,0.50058703]
[1760876579173,0.5256204,107770.0,107760.0,0.50077885]
[1760876579591,0.5256204,107770.0,107760.0,0.42992058]
[1760876580249,0.5256204,107770.0,107760.0,0.42972876]
[1760876581330,0.5256204,107770.0,107760.0,0.4299662]
[1760876582684,0.5256204,107770.0,107760.0,0.9299662]
[1760876582887,0.5256204,107770.0,107760.0,0.74436858]
[1760876583315,0.5256204,107770.0,107760.0,0.838775]
[1760876583744,0.5256204,107770.0,107760.0,1.02437262]
[1760876583965,0.34004,107770.0,107760.0,1.02437262]
[1760876584595,0.34004,107770.0,107760.0,1.02413518]
[1760876585240,0.5256204,107770.0,107760.0,1.02413518]
[1760876585764,0.5256204,107770.0,107760.0,1.02446379]
[1760876586621,0.34004,107770.0,107760.0,1.02446379]
[1760876588498,0.5256204,107770.0,107760.0,1.02446379]
[1760876593322,0.5256204,107770.0,107760.0,1.11733518]
[1760876594348,0.5256204,107770.0,107760.0,0.74413114]
[1760876594641,0.5256204,107770.0,107760.0,0.83763039]
[1760876595615,0.5256204,107770.0,107760.0,0.83733114]
[1760876597098,0.1855804,107770.0,107760.0,0.83733114]
[1760876597820,0.1855804,107770.0,107760.0,0.83773724]
[1760876598030,0.1855804,107770.0,107760.0,0.93214366]
[1760876599065,0.5555763,107780.0,107770.0,0.3144196]
[1760876599230,0.5555763,107780.0,107770.0,0.40883048]
[1760876600044,0.5555763,107780.0,107770.0,0.40923658]
[1760876603695,0.57288298,107780.0,107770.0,0.50243658]
[1760876603895,0.60078324,107780.0,107770.0,0.50243658]
[1760876604609,0.60078324,107780.0,107770.0,0.50350164]
[1760876606263,0.41521949,107780.0,107770.0,0.50350164]
[1760876606470,0.60083167,107780.0,107770.0,0.50350164]
[1760876606712,0.60083167,107780.0,107770.0,0.41030164]
[1760876606915,0.60083167,107780.0,107770.0,0.50350164]
[1760876607468,0.43363991,107780.0,107770.0,0.50350164]
[1760876607671,0.44291806,107780.0,107770.0,0.50350164]
[1760876608127,0.48052569,107780.0,107770.0,0.50350164]
[1760876609831,3.48052569,107780.0,107770.0,0.31589076]
[1760876610628,3.16610609,107780.0,107770.0,0.00147116]
[1760876610793,3.19400838,107780.0,107770.0,0.00147116]
[1760876612710,3.53400838,107780.0,107770.0,0.00147116]
[1760876615859,3.53400838,107780.0,107770.0,1e-08]
[1760876616261,3.53562538,107780.0,107770.0,1e-08]
[1760876616474,3.53400838,107780.0,107770.0,1e-08]
[1760876617308,3.62841926,107780.0,107770.0,1e-08]
[1760876618968,3.63003639,107780.0,107770.0,1e-08]
[1760876619170,3.66621867,107780.0,107770.0,1e-08]
[1760876620170,3.6807735,107780.0,107770.0,1e-08]
[1760876620596,3.6817735,107780.0,107770.0,1e-08]
[1760876622574,3.69901521,107780.0,107770.0,1e-08]
[1760876624289,3.69738775,107780.0,107770.0,1e-08]
[1760876626549,3.69900504,107780.0,107770.0,1e-08]
[1760876629537,3.51432812,107780.0,107770.0,1e-08]
[1760876629737,3.6999403,107780.0,107770.0,1e-08]
[1760876631092,3.70921845,107780.0,107770.0,1e-08]
[1760876633065,3.74674319,107780.0,107770.0,1e-08]
[1760876634421,3.83998319,107780.0,107770.0,1e-08]
[1760876635065,3.82275181,107780.0,107770.0,1e-08]
[1760876635263,3.83998247,107780.0,107770.0,1e-08]
[1760876636707,3.63399555,107780.0,107770.0,1e-08]
[1760876638104,3.50457327,107780.0,107770.0,1e-08]
[1760876638332,3.59781327,107780.0,107770.0,1e-08]
[1760876638542,3.58325844,107780.0,107770.0,1e-08]
[1760876639285,3.58164115,107780.0,107770.0,1e-08]
[1760876639489,3.48840115,107780.0,107770.0,1e-08]
[1760876639692,3.05399027,107780.0,107770.0,1e-08]
[1760876640062,3.39399027,107780.0,107770.0,1e-08]
[1760876640603,3.39299027,107780.0,107770.0,1e-08]
[1760876641615,3.48744115,107780.0,107770.0,1e-08]
[1760876642216,3.48905833,107780.0,107770.0,1e-08]
[1760876642843,3.49005833,107780.0,107770.0,1e-08]
[1760876643046,3.39564745,107780.0,107770.0,1e-08]
[1760876643258,3.48727027,107780.0,107770.0,1e-08]
[1760876643683,3.39403027,107780.0,107770.0,1e-08]
[1760876643963,3.05403027,107780.0,107770.0,1e-08]
[1760876644162,3.02612798,107780.0,107770.0,1e-08]
[1760876644370,3.36612798,107780.0,107770.0,1e-08]
[1760876644606,3.02612798,107780.0,107770.0,1e-08]
[1760876644805,3.02612798,107780.0,107770.0,0.09441089]
[1760876645013,0.22412792,107780.0,107770.0,0.3079918]
[1760876645189,0.56412792,107780.0,107770.0,0.1224114]
[1760876645385,0.56312792,107780.0,107770.0,0.1224114]
[1760876647065,0.56312792,107780.0,107770.0,0.09541089]
[1760876647262,0.56312792,107780.0,107770.0,0.28099129]
[1760876648487,0.37756474,107780.0,107770.0,0.28099129]
[1760876648710,0.56312792,107780.0,107770.0,0.28099129]
[1760876650338,0.56096892,107780.0,107770.0,0.28099129]
[1760876650712,0.56096892,107780.0,107770.0,0.33697395]
[1760876654697,0.56096892,107780.0,107770.0,0.15139355]
[1760876654906,0.56096892,107780.0,107770.0,0.18865089]
[1760876655547,0.56096892,107780.0,107770.0,0.09541089]
[1760876655789,0.56096892,107780.0,107770.0,0.18865089]
[1760876657700,0.56046892,107780.0,107770.0,0.18865089]
[1760876658116,0.56046892,107780.0,107770.0,0.20751598]
[1760876660949,0.56046892,107780.0,107770.0,0.18865089]
[1760876663166,0.37490574,107780.0,107770.0,0.37423129]
[1760876663392,0.56046892,107780.0,107770.0,0.37423129]
[1760876663616,0.56046892,107780.0,107770.0,0.18865089]
[1760876664746,0.56046892,107780.0,107770.0,0.09541089]
[1760876664970,0.56046892,107780.0,107770.0,0.18865089]
[1760876665629,0.56046892,107780.0,107770.0,0.22224598]
[1760876666517,0.56046892,107780.0,107770.0,0.18865089]
[1760876671373,0.55996892,107780.0,107770.0,0.18865089]
[1760876672244,0.5772417,107780.0,107770.0,0.18865089]
[1760876673541,0.5772417,107780.0,107770.0,0.18861089]
[1760876674846,0.57726535,107780.0,107770.0,0.18861089]
[1760876675284,0.57726535,107780.0,107770.0,0.2407616]
[1760876676597,0.03440574,107780.0,107770.0,0.426342]
[1760876676810,0.55996892,107780.0,107770.0,0.426342]
[1760876676989,0.21996892,107780.0,107770.0,0.2407616]
[1760876677652,0.55996892,107780.0,107770.0,0.2407616]
[1760876678297,0.37440574,107780.0,107770.0,0.426342]
[1760876678777,0.55996892,107780.0,107770.0,0.426342]
[1760876680309,0.55996892,107780.0,107770.0,0.573642]
[1760876682935,0.37340574,107780.0,107770.0,0.46252428]
[1760876683149,0.34004,107780.0,107770.0,0.46252428]
[1760876683578,4e-05,107780.0,107770.0,0.46252428]
[1760876684003,4e-05,107780.0,107770.0,0.61982427]
[1760876684419,4e-05,107780.0,107770.0,0.60982428]
[1760876684632,4e-05,107780.0,107770.0,0.60882428]
[1760876684843,4e-05,107780.0,107770.0,0.61882427]
[1760876685037,4e-05,107780.0,107770.0,0.62982426]
[1760876685949,4e-05,107780.0,107770.0,0.62882426]
[1760876686373,4e-05,107780.0,107770.0,0.62982426]
[1760876686811,4e-05,107780.0,107770.0,0.61982427]
[1760876687020,4e-05,107780.0,107770.0,0.62982426]
[1760876691343,4e-05,107780.0,107770.0,0.62993138]
[1760876692107,4e-05,107780.0,107770.0,0.65781702]
[1760876692793,0.37858077,107820.0,107810.0,0.22169382]
[1760876693000,0.37863042,107820.0,107810.0,0.43147408]
[1760876693614,0.37863042,107820.0,107810.0,0.4315812]
[1760876693856,0.56412476,107820.0,107810.0,0.4315812]
[1760876694510,0.37863042,107820.0,107810.0,0.4315812]
[1760876694718,0.37863042,107820.0,107810.0,0.24606966]
[1760876694719,0.56412476,107820.0,107810.0,0.24606966]
[1760876695124,0.56412476,107820.0,107810.0,0.21088738]
[1760876695770,0.56412476,107820.0,107810.0,0.21078026]
[1760876695984,0.56412476,107820.0,107810.0,0.18861088]
[1760876696826,0.56412476,107820.0,107810.0,0.18878013]
[1760876697938,0.56412476,107820.0,107810.0,0.33608013]
[1760876699635,0.56412476,107820.0,107810.0,0.24288013]
[1760876699845,0.56412476,107820.0,107810.0,0.33608013]
[1760876700530,0.56412476,107820.0,107810.0,0.33508013]
[1760876700740,0.56412476,107820.0,107810.0,0.36868814]
[1760876701619,0.56412476,107820.0,107810.0,0.33508013]
[1760876703723,0.22302475,107820.0,107810.0,0.33508013]
[1760876703935,0.22302475,107820.0,107810.0,0.18778013]
[1760876705652,0.56302475,107820.0,107810.0,0.18778013]
[1760876706679,3.56302475,107820.0,107810.0,0.00016925]
[1760876706899,3.56302475,107820.0,107810.0,0.09332925]
[1760876707319,3.58028719,107820.0,107810.0,0.00016925]
[1760876707782,3.60818185,107820.0,107810.0,0.00016925]
[1760876709798,3.70138185,107820.0,107810.0,0.00016925]
[1760876710000,3.70042185,107820.0,107810.0,0.00016925]
[1760876710401,3.70203842,107820.0,107810.0,0.00016925]
[1760876711600,0.52556318,107780.0,107770.0,0.05215071]
[1760876711818,0.52556318,107780.0,107770.0,0.18761088]
[1760876712221,0.52556318,107780.0,107770.0,0.18871116]
[1760876713101,0.52556318,107780.0,107770.0,0.18971116]
[1760876713755,0.52556318,107780.0,107770.0,0.18871116]
[1760876714304,0.52556318,107780.0,107770.0,0.18971116]
[1760876714704,0.52556318,107780.0,107770.0,0.2123005]
[1760876721608,0.52556318,107780.0,107770.0,0.3596005]
[1760876723857,0.328192,107780.0,107770.0,0.3596005]
[1760876724064,0.51375518,107780.0,107770.0,0.3596005]
[1760876726901,0.51375518,107780.0,107770.0,0.33701116]
[1760876740093,0.18556318,107780.0,107770.0,0.33701116]
[1760876752869,0.52556318,107780.0,107770.0,0.33701116]
[1760876756327,0.52556318,107780.0,107770.0,0.24381116]
[1760876756514,0.52556318,107780.0,107770.0,0.33701116]
[1760876756911,0.52556318,107780.0,107770.0,0.24381116]
[1760876757123,0.52556318,107780.0,107770.0,0.18971116]
[1760876757347,0.52556318,107780.0,107770.0,0.20768228]
[1760876758473,0.52556318,107780.0,107770.0,0.2061592]
[1760876759469,0.52556318,107780.0,107770.0,0.18718808]
[1760876760834,0.52556318,107780.0,107770.0,0.09430028]
[1760876762415,3.54287627,107780.0,107770.0,0.09430028]
[1760876762640,3.54287627,107780.0,107770.0,0.00110028]
[1760876763072,3.54287627,107780.0,107770.0,1e-08]
[1760876763288,3.57078279,107780.0,107770.0,1e-08]
[1760876766012,3.66519367,107780.0,107770.0,1e-08]
[1760876766425,3.66681065,107780.0,107770.0,1e-08]
[1760876779453,3.66675345,107780.0,107770.0,1e-08]
[1760876784413,3.66676579,107780.0,107770.0,1e-08]
[1760876784727,3.69376886,107780.0,107770.0,1e-08]
[1760876788444,3.66776579,107780.0,107770.0,1e-08]
[1760876794562,3.66617248,107780.0,107770.0,1e-08]
[1760876794716,3.4806093,107780.0,107770.0,1e-08]
[1760876794924,3.66617248,107780.0,107770.0,1e-08]
[1760876797386,3.66778957,107780.0,107770.0,1e-08]
[1760876803333,3.68234372,107780.0,107770.0,1e-08]
[1760876817167,3.74452907,107780.0,107770.0,1e-08]
[1760876817776,0.52563207,107740.0,107730.0,0.1473]